bitfinex/quotes_SOLUSD_20250305
["timestamp","ask_amount","ask_price","bid_price","bid_amount"]
[1741145820282,42.08820702,144.46,144.42,88.5242]
[1741145820486,6.9216,144.48,144.42,88.5242]
[1741145820487,42.08820702,144.47,144.42,88.5242]
[1741145820657,42.08820702,144.45,144.42,81.6]
[1741145821073,42.08820702,144.46,144.42,88.5241]
[1741145821663,42.08820702,144.46,144.42,81.6]
[1741145822065,87.4,144.49,144.43,0.28432314]
[1741145822268,42.08820702,144.49,144.43,123.97253016]
[1741145822787,42.08820702,144.5,144.43,435.97253016]
[1741145822958,87.1,144.54,144.48,42.37253016]
[1741145822959,42.08820702,144.54,144.48,42.37253016]
[1741145823163,42.08820702,144.54,144.49,6.9208]
[1741145823590,42.08820702,144.54,144.48,130.89373016]
[1741145823883,42.08820702,144.49,144.44,0.28432314]
[1741145824060,42.08820702,144.47,144.42,81.6]
[1741145824261,42.08820702,144.45,144.41,0.033]
[1741145825685,42.08820702,144.48,144.41,0.033]
[1741145825686,42.08820702,144.42,144.41,0.033]
[1741145826595,42.08820702,144.43,144.41,0.033]
[1741145826777,42.08820702,144.42,144.41,0.033]
[1741145826982,42.08820702,144.42,144.41,0.0001]
[1741145826983,84.46073718,144.42,144.41,0.0001]
[1741145827182,84.46073718,144.42,144.3,0.033]
[1741145827183,20.0,144.38,144.3,0.033]
[1741145827378,42.08820702,144.35,144.3,0.31732314]
[1741145827696,12.5236,144.44,144.34,0.28432314]
[1741145827894,20.0,144.41,144.31,0.14216157]
[1741145828096,20.0,144.39,144.31,81.74216157]
[1741145828265,192.4,144.42,144.32,0.28432314]
[1741145828461,81.8,144.42,144.32,81.88432314]
[1741145828694,81.8,144.42,144.36,42.08820702]
[1741145828695,123.88820702,144.42,144.36,42.08820702]
[1741145828903,42.08820702,144.41,144.36,0.28432314]
[1741145829196,42.08820702,144.42,144.36,49.29953016]
[1741145829393,42.08820702,144.43,144.38,0.28432314]
[1741145829601,42.08820702,144.42,144.38,0.28432314]
[1741145830189,42.08820702,144.42,144.37,0.28432314]
[1741145831108,42.08820702,144.4,144.33,42.23036859]
[1741145831394,42.08820702,144.36,144.32,81.6]
[1741145831764,42.08820702,144.35,144.32,81.6]
[1741145831968,42.08820702,144.34,144.3,0.033]
[1741145832170,42.08820702,144.35,144.3,81.91732314]
[1741145832372,42.08820702,144.35,144.3,88.84712314]
[1741145832569,42.08820702,144.36,144.3,130.93533016]
[1741145833372,42.08820702,144.34,144.3,81.633]
[1741145833591,42.08820702,144.32,144.3,0.033]
[1741145833986,5.6,144.35,144.3,0.033]
[1741145834196,42.08820702,144.32,144.3,0.033]
[1741145835496,81.8,144.33,144.3,0.033]
[1741145836007,123.88820702,144.33,144.3,0.033]
[1741145836181,81.8,144.33,144.3,0.033]
[1741145836702,123.88820702,144.33,144.3,0.033]
[1741145837085,42.08820702,144.32,144.3,0.033]
[1741145837281,42.08820702,144.31,144.3,0.033]
[1741145838576,123.88820702,144.31,144.3,0.033]
[1741145838895,42.08820702,144.31,144.3,0.033]
[1741145839288,49.01770702,144.31,144.3,0.033]
[1741145839486,6.9281,144.34,144.3,0.0001]
[1741145839808,42.08820702,144.34,144.3,0.0001]
[1741145840098,42.08820702,144.32,144.3,0.0001]
[1741145840480,42.08820702,144.31,144.3,0.0001]
[1741145840680,42.08820702,144.32,144.3,0.0001]
[1741145840893,42.08820702,144.34,144.3,0.0001]
[1741145842002,42.08820702,144.36,144.3,42.08830702]
[1741145842202,62.08820702,144.35,144.3,0.0001]
[1741145842602,42.08820702,144.31,144.3,0.0001]
[1741145843313,42.08820702,144.33,144.3,0.0001]
[1741145843610,42.08820702,144.35,144.3,0.0001]
[1741145843906,42.08820702,144.34,144.3,0.0001]
[1741145844288,42.08820702,144.32,144.3,0.0001]
[1741145844502,42.08820702,144.31,144.3,0.0001]
[1741145844997,42.08820702,144.32,144.3,0.0001]
[1741145845416,42.08820702,144.33,144.3,0.0001]
[1741145845721,0.03,144.34,144.3,42.08830702]
[1741145846094,0.03,144.34,144.3,0.0001]
[1741145846395,0.03,144.34,144.3,312.0001]
[1741145846887,42.08820702,144.33,144.3,0.0001]
[1741145847096,6.9582,144.34,144.3,0.0001]
[1741145847410,42.11820702,144.34,144.3,0.0001]
[1741145847595,42.08820702,144.32,144.3,0.0001]
[1741145848298,42.08820702,144.33,144.3,0.0001]
[1741145848495,42.11820702,144.34,144.3,0.0001]
[1741145848703,0.03,144.34,144.3,0.0001]
[1741145849421,42.11820702,144.34,144.3,0.0001]
[1741145850697,42.08820702,144.33,144.3,0.0001]
[1741145851110,42.08820702,144.32,144.3,0.0001]
[1741145851599,42.08820702,144.31,144.3,0.0001]
[1741145852492,25.90091256,144.31,144.3,0.0001]
[1741145853425,25.90091256,144.32,144.3,0.0001]
[1741145854032,0.03,144.34,144.3,0.0001]
[1741145854318,0.03,144.34,144.32,25.90091256]
[1741145854489,0.03,144.34,144.33,46.1852357]
[1741145854693,0.03,144.34,144.33,127.7852357]
[1741145854892,0.03,144.34,144.33,107.7852357]
[1741145855323,0.03,144.34,144.33,81.88432314]
[1741145855743,0.03,144.34,144.32,0.28432314]
[1741145856226,0.03,144.34,144.31,0.28432314]
[1741145856598,0.03,144.34,144.3,0.0001]
[1741145856922,42.06451109,144.31,144.3,0.0001]
[1741145857120,42.06451109,144.32,144.3,0.0001]
[1741145857421,42.09451109,144.34,144.3,0.0001]
[1741145857629,42.09451109,144.34,144.3,49.27883423]
[1741145857630,0.03,144.34,144.3,49.27883423]
[1741145857916,0.03,144.34,144.32,42.34883423]
[1741145858427,0.03,144.34,144.32,0.28432314]
[1741145858813,0.03,144.34,144.33,0.28432314]
[1741145858991,0.03,144.34,144.33,123.94883423]
[1741145859623,0.03,144.34,144.33,81.6]
[1741145862042,0.03,144.34,144.33,81.88432314]
[1741145862439,0.03,144.34,144.33,81.6]
[1741145862641,0.03,144.34,144.3,123.66461109]
[1741145862943,0.03,144.34,144.31,0.28432314]
[1741145863247,0.03,144.34,144.3,0.0001]
[1741145863248,42.06451109,144.32,144.3,0.0001]
[1741145864842,42.09451109,144.34,144.3,0.0001]
[1741145865018,6.9581,144.34,144.3,0.0001]
[1741145866327,0.03,144.34,144.3,0.0001]
[1741145866735,0.03,144.34,144.31,42.34883423]
[1741145866945,0.03,144.34,144.33,42.34883423]
[1741145867252,0.03,144.34,144.31,0.28432314]
[1741145867754,0.03,144.34,144.3,81.6001]
[1741145868049,0.03,144.34,144.3,0.0001]
[1741145868050,42.09451109,144.34,144.3,0.0001]
[1741145868658,6.9285,144.33,144.3,0.0001]
[1741145869452,48.99301109,144.33,144.3,0.0001]
[1741145869661,42.06451109,144.32,144.3,0.0001]
[1741145871058,42.06451109,144.32,144.26,55.46401109]
[1741145871059,260.06451109,144.31,144.26,0.033]
[1741145871270,62.06451109,144.27,144.26,0.033]
[1741145872760,68.99591109,144.27,144.26,0.033]
[1741145872961,62.06451109,144.27,144.26,0.033]
[1741145874071,12.5091,144.32,144.26,0.033]
[1741145874258,42.06451109,144.3,144.26,0.033]
[1741145876238,42.06451109,144.29,144.26,0.033]
[1741145876761,42.06451109,144.28,144.26,0.033]
[1741145877345,42.06451109,144.29,144.26,0.033]
[1741145878056,42.06451109,144.3,144.26,0.033]
[1741145878364,81.8,144.33,144.26,0.033]
[1741145878365,42.09451109,144.34,144.28,42.06451109]
[1741145878670,25.92281102,144.34,144.28,25.89281102]
[1741145878967,25.92281102,144.34,144.33,26.17713416]
[1741145878968,0.03,144.34,144.33,26.17713416]
[1741145880339,25.89281102,144.41,144.34,0.28432314]
[1741145880545,25.89281102,144.41,144.36,25.89281102]
[1741145880864,81.8,144.42,144.38,6.9261]
[1741145881068,25.89281102,144.43,144.38,6.9261]
[1741145881255,25.89281102,144.42,144.38,6.9261]
[1741145881456,25.89281102,144.43,144.39,0.28432314]
[1741145881658,25.89281102,144.44,144.39,0.28432314]
[1741145881859,25.89281102,144.45,144.39,107.77713416]
[1741145882057,25.89281102,144.45,144.4,25.89281102]
[1741145882652,25.89281102,144.45,144.39,107.77713416]
[1741145883476,25.89281102,144.45,144.4,6.9252]
[1741145883967,25.89281102,144.42,144.36,399.6838]
[1741145884149,25.89281102,144.42,144.37,7.21092314]
[1741145884468,25.89281102,144.41,144.37,7.21092314]
[1741145884648,25.89281102,144.41,144.36,87.6838]
[1741145884851,25.89281102,144.39,144.36,81.6]
[1741145885171,25.89281102,144.38,144.33,81.6]
[1741145885464,25.89281102,144.37,144.32,6.0852]
[1741145885849,25.89281102,144.38,144.33,0.28432314]
[1741145886053,25.89281102,144.4,144.35,0.28432314]
[1741145886575,25.89281102,144.42,144.37,26.17713416]
[1741145886775,25.89281102,144.44,144.39,0.28432314]
[1741145887476,25.89281102,144.44,144.39,26.17713416]
[1741145887859,25.89281102,144.44,144.39,0.28432314]
[1741145888059,25.89281102,144.43,144.39,0.28432314]
[1741145888255,25.89281102,144.42,144.38,81.6]
[1741145888559,25.89281102,144.39,144.33,25.89281102]
[1741145888767,25.89281102,144.38,144.33,81.6]
[1741145889063,25.89281102,144.36,144.32,6.0852]
[1741145889575,25.89281102,144.33,144.29,81.6]
[1741145889870,25.89281102,144.31,144.28,10.78436756]
[1741145890047,25.89281102,144.3,144.28,10.78436756]
[1741145890449,25.89281102,144.29,144.26,0.033]
[1741145890758,88.3023,144.33,144.26,0.033]
[1741145890759,25.89281102,144.27,144.26,0.033]
[1741145892770,42.11817852,144.27,144.26,0.033]
[1741145892968,200.39635704,144.27,144.26,0.033]
[1741145893478,110.6,144.26,144.25,0.0001]
[1741145893689,49.33440166,144.26,144.25,0.0001]
[1741145893974,20.0,144.21,144.19,0.033]
[1741145894181,42.11817852,144.2,144.19,0.033]
[1741145895781,49.05297852,144.2,144.19,0.033]
[1741145898287,20.0,144.17,144.16,0.033]
[1741145898454,62.11817852,144.17,144.16,0.033]
[1741145900469,179.65437852,144.17,144.16,0.033]
[1741145900670,179.65437852,144.17,144.15,0.033]
[1741145900982,42.11817852,144.16,144.15,0.033]
[1741145901778,42.11817852,144.16,144.11,0.033]
[1741145901779,20.0,144.13,144.11,0.033]
[1741145902083,62.11817852,144.12,144.11,0.033]
[1741145902474,69.05677852,144.12,144.11,0.033]
[1741145902874,26.9386,144.12,144.11,0.033]
[1741145903089,69.05677852,144.12,144.11,0.033]
[1741145903968,62.11817852,144.12,144.11,0.033]
[1741145904167,20.0,144.12,144.11,0.033]
[1741145904377,42.11817852,144.13,144.11,0.033]
[1741145904876,42.11817852,144.14,144.11,0.033]
[1741145905368,123.91817852,144.17,144.11,42.43550166]
[1741145905786,42.11817852,144.16,144.11,0.31732314]
[1741145906282,42.11817852,144.14,144.11,0.033]
[1741145906480,42.11817852,144.13,144.11,0.033]
[1741145906692,17.341,144.17,144.11,0.033]
[1741145906693,42.11817852,144.12,144.11,0.033]
[1741145906894,42.11817852,144.13,144.11,0.033]
[1741145907402,42.11817852,144.14,144.11,0.033]
[1741145907703,42.11817852,144.13,144.11,0.033]
[1741145908699,123.91817852,144.15,144.11,0.033]
[1741145908899,42.11817852,144.13,144.11,0.033]
[1741145909402,123.91817852,144.12,144.11,0.033]
[1741145910604,130.85677852,144.12,144.11,0.033]
[1741145910791,49.05677852,144.12,144.11,0.033]
[1741145910978,42.11817852,144.07,144.06,0.033]
[1741145911899,42.11817852,144.08,144.06,0.033]
[1741145912401,42.11817852,144.13,144.07,0.14216157]
[1741145912811,62.11817852,144.11,144.06,81.633]
[1741145912984,42.11817852,144.1,144.06,0.033]
[1741145913894,81.8,144.11,144.07,0.14216157]
[1741145914092,42.11817852,144.13,144.08,0.14216157]
[1741145914307,42.11817852,144.14,144.09,6.9401]
[1741145914622,25.96605301,144.13,144.09,6.9401]
[1741145915701,25.99605301,144.13,144.09,6.9401]
[1741145916394,25.96605301,144.11,144.08,6.9405]
[1741145916721,25.96605301,144.11,144.07,88.5409]
[1741145917016,45.96605301,144.12,144.07,88.5409]
[1741145917217,25.96605301,144.1,144.07,88.5409]
[1741145917409,45.96605301,144.11,144.07,6.9409]
[1741145917928,25.96605301,144.11,144.08,0.28432314]
[1741145918088,25.96605301,144.12,144.08,0.28432314]
[1741145918289,25.96605301,144.11,144.07,81.6]
[1741145918513,25.96605301,144.11,144.07,88.541]
[1741145918713,25.96605301,144.12,144.07,88.541]
[1741145919515,25.96605301,144.11,144.07,88.541]
[1741145921220,25.96605301,144.12,144.07,88.541]
[1741145922201,0.03,144.13,144.08,26.25037615]
[1741145923341,0.03,144.13,144.09,6.9401]
[1741145923620,0.03,144.13,144.09,32.90615301]
[1741145924101,0.03,144.13,144.09,344.90615301]
[1741145924412,0.03,144.13,144.09,32.90615301]
[1741145924621,0.03,144.13,144.09,6.9401]
[1741145925418,25.99605301,144.13,144.09,6.9401]
[1741145926216,25.99605301,144.13,144.07,107.56605301]
[1741145926427,25.96605301,144.11,144.07,88.5409]
[1741145926603,25.96605301,144.11,144.07,81.6]
[1741145926805,25.96605301,144.09,144.06,0.033]
[1741145927824,25.96605301,144.09,144.06,6.9745]
[1741145928627,25.96605301,144.1,144.06,0.033]
[1741145931405,32.90565301,144.1,144.06,0.033]
[1741145932326,25.96605301,144.07,144.06,0.033]
[1741145932730,25.96605301,144.08,144.06,0.033]
[1741145933235,88.7401,144.09,144.06,0.033]
[1741145933534,114.70615301,144.09,144.06,0.033]
[1741145934243,25.96605301,144.07,144.06,0.033]
[1741145934726,6.941,144.07,144.06,0.033]
[1741145934928,32.90705301,144.07,144.06,0.033]
[1741145936713,114.70705301,144.07,144.06,0.033]
[1741145937433,107.76605301,144.07,144.06,0.033]
[1741145937639,81.8,144.07,144.06,0.033]
[1741145939337,5.5,144.08,144.06,0.033]
[1741145939646,5.5,144.08,144.06,26.14121458]
[1741145940520,25.96605301,144.12,144.06,26.14121458]
[1741145940707,25.96605301,144.11,144.06,0.17516157]
[1741145940913,25.96605301,144.09,144.06,0.033]
[1741145941339,25.96605301,144.08,144.06,0.033]
[1741145941642,32.90705301,144.08,144.06,0.033]
[1741145942029,6.941,144.08,144.06,0.033]
[1741145942740,32.90625301,144.09,144.06,0.033]
[1741145942925,25.96605301,144.09,144.06,0.033]
[1741145943127,25.96605301,144.07,144.06,0.033]
[1741145943834,32.90705301,144.07,144.06,0.033]
[1741145945142,25.96605301,144.07,144.06,0.033]
[1741145945441,25.96605301,144.09,144.06,0.033]
[1741145945942,25.96605301,144.07,144.06,0.033]
[1741145946319,5.5,144.1,144.06,0.033]
[1741145946320,25.96605301,144.08,144.06,0.033]
[1741145947526,45.96605301,144.07,144.06,0.033]
[1741145947730,52.90705301,144.07,144.06,0.033]
[1741145950123,20.0,144.04,144.03,0.033]
[1741145950324,25.96605301,144.04,144.03,0.033]
[1741145950525,81.8,144.03,144.02,0.033]
[1741145950750,20.0,144.0,143.97,0.033]
[1741145950957,25.96605301,143.99,143.97,0.033]
[1741145951622,31.46605301,144.01,143.97,0.033]
[1741145951951,5.5,144.01,143.97,0.033]
[1741145952263,5.5,144.01,143.97,0.17516157]
[1741145953018,5.5,144.01,143.98,0.14216157]
[1741145953230,5.5,144.05,144.0,26.10821458]
[1741145953859,31.46605301,144.05,144.0,0.14216157]
[1741145954149,81.8,144.06,144.0,33.05251458]
[1741145954344,107.76605301,144.06,144.0,33.05251458]
[1741145954643,25.96605301,144.06,144.0,33.05251458]
[1741145954821,25.96605301,144.07,144.01,25.96605301]
[1741145955023,25.96605301,144.06,144.0,33.05251458]
[1741145955824,25.96605301,144.05,144.0,0.14216157]
[1741145956023,25.96605301,144.04,143.98,25.96605301]
[1741145956347,25.96605301,144.02,143.97,0.033]
[1741145956534,25.96605301,144.02,143.97,0.17516157]
[1741145957141,25.96605301,144.0,143.97,0.033]
[1741145958252,32.91055301,144.0,143.97,0.033]
[1741145958947,6.9441,144.01,143.97,0.033]
[1741145959149,32.91015301,144.01,143.97,0.033]
[1741145960225,25.96605301,143.99,143.97,0.033]
[1741145960429,25.96605301,144.0,143.97,0.033]
[1741145961354,107.76605301,144.02,143.97,0.033]
[1741145962358,81.8,144.02,143.97,33.08691458]
[1741145963530,25.96605301,144.03,143.97,33.08691458]
[1741145963731,25.96605301,144.02,143.97,0.17516157]
[1741145963930,25.96605301,144.02,143.97,7.12096157]
[1741145965055,25.96605301,144.02,143.97,0.033]
[1741145965262,25.96605301,144.01,143.97,0.033]
[1741145965754,25.96605301,144.02,143.97,0.033]
[1741145966140,25.96605301,144.02,143.97,6.9787]
[1741145966655,25.96605301,144.03,143.97,32.94475301]
[1741145967055,0.03,144.05,144.0,25.96605301]
[1741145967247,0.03,144.05,144.0,32.91015301]
[1741145968149,0.03,144.05,144.0,6.9441]
[1741145969261,25.99605301,144.05,144.0,6.9441]
[1741145969658,25.99605301,144.05,143.98,107.56605301]
[1741145969659,25.96605301,144.04,143.98,107.56605301]
[1741145969843,25.96605301,144.04,143.99,6.9449]
[1741145971157,25.96605301,144.03,143.98,88.5452]
[1741145971459,25.96605301,144.04,143.98,114.51125301]
[1741145971638,25.99605301,144.05,143.98,88.5452]
[1741145971843,25.99605301,144.05,143.99,25.96605301]
[1741145972562,0.03,144.05,144.0,16.24616354]
[1741145972744,0.03,144.05,143.99,23.19106354]
[1741145974261,16.27616354,144.05,143.99,23.19106354]
[1741145975063,0.03,144.05,143.99,23.19106354]
[1741145975259,0.03,144.05,143.99,23.22406354]
[1741145975661,0.03,144.04,143.99,23.22406354]
[1741145975966,0.03,144.04,143.99,6.9779]
[1741145976169,16.27616354,144.04,143.99,6.9779]
[1741145976375,16.27616354,144.04,143.99,0.033]
[1741145977366,0.03,144.04,143.99,23.22386354]
[1741145979573,16.27616354,144.04,143.99,0.033]
[1741145980380,16.24616354,144.03,143.99,0.033]
[1741145980942,16.24616354,144.02,143.99,0.033]
[1741145981781,16.24616354,144.0,143.99,0.033]
[1741145984381,23.19056354,144.0,143.99,0.033]
[1741145984864,16.24616354,144.0,143.99,0.033]
[1741145985184,133.78966354,144.02,143.99,0.033]
[1741145985552,16.24616354,144.01,143.99,0.033]
[1741145985773,98.07616354,144.04,143.99,0.033]
[1741145985974,105.01876354,144.04,143.99,0.033]
[1741145987679,16.24616354,144.02,143.99,0.033]
[1741145989176,23.18956354,144.03,143.99,0.033]
[1741145989386,16.24616354,144.02,143.99,0.033]
[1741145989984,23.18966354,144.02,143.99,0.033]
[1741145990483,16.24616354,144.01,143.99,0.033]
[1741145990787,23.18966354,144.02,143.99,0.033]
[1741145991078,81.8,144.03,143.99,0.033]
[1741145991283,0.03,144.04,144.01,16.24616354]
[1741145991580,0.03,144.04,143.99,23.05062511]
[1741145991978,16.24616354,144.03,143.99,6.6623]
[1741145992351,16.24616354,144.02,143.99,6.6623]
[1741145992554,16.24616354,144.02,143.99,0.033]
[1741145992760,16.24616354,144.01,143.99,0.033]
[1741145993457,16.24616354,144.03,143.99,0.033]
[1741145993658,0.03,144.04,144.0,16.24616354]
[1741145993890,0.03,144.04,144.02,16.24616354]
[1741145994179,0.03,144.04,144.02,23.18936354]
[1741145994389,0.03,144.04,144.0,1.74386157]
[1741145994390,0.03,144.04,144.0,1.6017]
[1741145994568,16.27616354,144.04,143.99,81.633]
[1741145994772,16.27616354,144.04,143.99,0.033]
[1741145994973,0.03,144.04,143.99,16.27916354]
[1741145995289,0.03,144.04,144.01,16.24616354]
[1741145995786,0.03,144.04,144.0,16.38832511]
[1741145996361,0.03,144.04,143.99,16.27916354]
[1741145997985,16.27616354,144.04,143.99,0.033]
[1741145998171,23.21906354,144.04,143.99,0.033]
[1741145998872,0.03,144.04,144.0,16.24616354]
[1741145999394,16.24616354,144.03,143.99,0.033]
[1741145999568,23.21876354,144.04,143.99,0.033]
[1741146000093,98.04616354,144.03,143.99,0.033]
[1741146000269,16.24616354,144.02,143.99,0.033]
[1741146000670,16.24616354,144.01,143.99,0.033]
[1741146000987,16.24616354,144.0,143.99,0.033]
[1741146002071,23.19056354,144.0,143.99,0.033]
[1741146003802,88.744,144.01,143.99,0.033]
[1741146003974,81.8,144.01,143.99,0.033]
[1741146005593,88.7439,144.01,143.99,0.033]
[1741146005770,104.99006354,144.01,143.99,0.033]
[1741146006091,16.24616354,144.0,143.99,0.033]
[1741146007178,23.19056354,144.0,143.99,0.033]
[1741146007369,44.93672708,144.0,143.92,6.0479]
[1741146007573,16.24616354,143.94,143.91,0.033]
[1741146007879,16.24616354,143.96,143.91,0.033]
[1741146008073,98.04616354,143.98,143.92,16.24616354]
[1741146008673,16.24616354,143.97,143.91,81.77516157]
[1741146008877,16.24616354,143.95,143.91,81.633]
[1741146009091,16.24616354,143.95,143.91,0.033]
[1741146009288,23.19336354,143.95,143.91,0.033]
[1741146009491,16.24616354,143.94,143.91,0.033]
[1741146009688,23.19336354,143.95,143.91,0.033]
[1741146010101,81.8,143.96,143.92,16.24616354]
[1741146010301,98.04616354,143.96,143.91,0.033]
[1741146011092,16.24616354,143.95,143.91,0.033]
[1741146011481,16.24616354,143.94,143.91,0.033]
[1741146012015,88.7465,143.96,143.91,0.033]
[1741146012306,16.24616354,143.95,143.91,0.033]
[1741146013385,98.04616354,143.96,143.91,0.033]
[1741146013704,81.8,143.99,143.92,0.14216157]
[1741146014013,81.8,143.99,143.96,16.24616354]
[1741146014311,16.24616354,144.0,143.94,16.38832511]
[1741146014812,16.24616354,143.99,143.94,16.24616354]
[1741146015113,16.24616354,143.98,143.93,81.6]
[1741146015302,16.24616354,143.97,143.92,16.24616354]
[1741146015483,16.24616354,143.97,143.92,23.19446354]
[1741146015678,16.24616354,143.98,143.92,16.24616354]
[1741146015883,16.24616354,143.97,143.91,6.9816]
[1741146016106,16.24616354,143.97,143.91,16.27916354]
[1741146016282,81.8,143.98,143.91,16.27916354]
[1741146016283,16.24616354,143.95,143.91,0.033]
[1741146016488,16.24616354,143.96,143.91,0.033]
[1741146016678,16.24616354,143.96,143.91,6.9817]
[1741146017193,16.24616354,143.97,143.91,23.22786354]
[1741146017908,23.19246354,143.97,143.91,23.22786354]
[1741146018199,16.24616354,143.95,143.91,0.033]
[1741146018421,16.24616354,143.96,143.91,0.033]
[1741146018585,23.19246354,143.97,143.91,23.36992511]
[1741146018783,16.24616354,143.96,143.91,16.27916354]
[1741146019003,16.24616354,143.96,143.91,0.033]
[1741146019207,16.24616354,143.95,143.91,0.033]
[1741146019589,16.24616354,143.94,143.91,0.033]
[1741146019895,16.24616354,143.92,143.91,0.033]
[1741146020095,23.19446354,143.92,143.91,0.033]
[1741146021892,16.24616354,143.92,143.91,0.033]
[1741146022089,16.24616354,143.93,143.91,0.033]
[1741146022590,16.24616354,143.92,143.91,0.033]
[1741146022998,16.24616354,143.93,143.91,0.033]
[1741146023187,16.24616354,143.92,143.91,0.033]
[1741146023793,16.24616354,143.93,143.91,0.033]
[1741146023988,98.04616354,143.97,143.91,16.27916354]
[1741146025291,104.99206354,143.97,143.91,16.27916354]
[1741146025809,16.24616354,143.96,143.91,16.27916354]
[1741146026301,104.99206354,143.97,143.91,23.22786354]
[1741146026496,104.99206354,143.97,143.91,16.27916354]
[1741146026799,16.24616354,143.96,143.91,0.033]
[1741146026997,16.24616354,143.95,143.91,0.033]
[1741146027509,16.24616354,143.94,143.91,0.033]
[1741146027716,16.24616354,143.93,143.91,0.033]
[1741146027893,23.19426354,143.93,143.91,0.033]
[1741146028421,98.04616354,143.92,143.91,0.033]
[1741146030410,104.99446354,143.92,143.91,0.033]
[1741146031901,23.19446354,143.92,143.91,0.033]
[1741146032301,110.6,143.93,143.91,0.033]
[1741146032491,23.19316354,143.95,143.91,0.033]
[1741146032694,16.24616354,143.95,143.91,0.033]
[1741146032911,23.19306354,143.95,143.91,0.033]
[1741146033400,16.24616354,143.94,143.91,0.033]
[1741146033786,16.24616354,143.93,143.91,0.033]
[1741146034408,16.24616354,143.94,143.91,0.033]
[1741146034614,16.24616354,143.95,143.91,0.033]
[1741146035115,16.24616354,143.96,143.91,0.033]
[1741146035493,21.74616354,143.97,143.91,22.45536354]
[1741146036012,28.69216354,143.97,143.91,22.45536354]
[1741146036314,16.24616354,143.96,143.91,6.2092]
[1741146036500,16.24616354,143.96,143.91,0.033]
[1741146036712,16.24616354,143.93,143.91,0.033]
[1741146036913,98.04616354,143.95,143.91,0.033]
[1741146038210,104.99326354,143.95,143.91,0.033]
[1741146038438,16.24616354,143.94,143.91,0.033]
[1741146038890,16.24616354,143.92,143.91,0.033]
[1741146039998,16.24616354,143.93,143.91,0.033]
[1741146040615,16.24616354,143.92,143.91,0.033]
[1741146042694,23.19446354,143.92,143.91,0.033]
[1741146044520,6.9483,143.92,143.91,0.033]
[1741146044722,23.19396354,143.93,143.91,0.033]
[1741146045026,110.6,143.94,143.91,0.033]
[1741146045202,16.24616354,143.96,143.91,16.27916354]
[1741146045824,16.24616354,143.96,143.91,0.033]
[1741146046029,16.24616354,143.95,143.91,0.033]
[1741146046517,81.83,143.97,143.92,16.24616354]
[1741146046713,81.83,143.97,143.94,16.24616354]
[1741146046922,0.03,143.97,143.94,16.24616354]
[1741146047299,0.03,143.97,143.92,16.24616354]
[1741146047508,16.24616354,143.96,143.91,83.1511]
[1741146048221,23.19246354,143.96,143.91,83.1511]
[1741146048635,23.19246354,143.96,143.91,81.633]
[1741146048837,16.24616354,143.95,143.91,81.633]
[1741146049212,16.24616354,143.95,143.91,0.033]
[1741146049213,16.24616354,143.92,143.91,0.033]
[1741146049425,81.8,143.93,143.91,0.033]
[1741146049631,98.04616354,143.93,143.91,0.033]
[1741146049950,16.24616354,143.92,143.91,0.033]
[1741146050155,23.19446354,143.92,143.91,0.033]
[1741146052549,32.99628315,143.92,143.91,0.033]
[1741146053849,110.6,143.91,143.84,6.0507]
[1741146054053,26.04798315,143.85,143.84,0.033]
[1741146054553,52.0959663,143.85,143.84,0.0001]
[1741146055053,52.38028944,143.85,143.84,0.0001]
[1741146055243,20.0,143.82,143.8,10.78436756]
[1741146055428,31.54798315,143.81,143.79,23.41216553]
[1741146055627,26.04798315,143.8,143.79,23.41216553]
[1741146057451,26.04798315,143.8,143.79,1.8434304]
[1741146058040,31.70196158,143.8,143.79,1.8434304]
[1741146058223,38.65616158,143.8,143.76,0.033]
[1741146058424,26.04798315,143.77,143.76,0.033]